bitfinex/quotes_ETHUSD_20240530
["timestamp","ask_amount","ask_price","bid_price","bid_amount"]
[1717060970867,1.072602,3735.4,3734.5,1.29789222]
[1717060971083,5.15154,3735.9,3734.6,2.4137]
[1717060971260,2.67674,3735.9,3734.7,1.93682644]
[1717060971474,2.67674,3735.9,3734.7,1.99506998]
[1717060971860,2.67674,3735.9,3734.8,1.29789222]
[1717060972297,2.67674,3735.9,3734.9,0.05826289]
[1717060972493,2.67674,3735.9,3735.0,1.29789222]
[1717060972696,3.244414,3735.9,3735.0,1.29789222]
[1717060972852,3.244414,3735.9,3735.1,0.05824086]
[1717060973047,3.244414,3735.9,3735.2,1.29789222]
[1717060973508,3.244414,3735.9,3735.3,0.05821883]
[1717060973801,3.244414,3735.9,3735.4,1.29789222]
[1717060973986,0.3244414,3735.8,3735.4,1.29789222]
[1717060976085,0.3244414,3735.8,3734.6,2.4137]
[1717060976293,2.67693,3735.7,3734.7,1.29789222]
[1717060976458,2.67693,3735.7,3734.7,1.35591618]
[1717060976659,0.85360454,3735.6,3734.7,1.35591618]
[1717060977288,2.67693,3735.7,3734.7,1.35591618]
[1717060977603,2.67693,3735.7,3734.8,1.29789222]
[1717060978104,2.67693,3735.7,3734.9,0.05754051]
[1717060978310,2.67693,3735.7,3735.0,1.29789222]
[1717060978803,2.67693,3735.7,3735.1,0.05751848]
[1717060978956,2.67693,3735.7,3735.2,1.29789222]
[1717060982811,5.67653,3736.2,3735.2,3.60559222]
[1717060982963,2.67653,3736.2,3735.3,0.41805567]
[1717060983162,2.67653,3736.2,3735.4,1.29789222]
[1717060983675,2.67653,3736.2,3735.5,0.05747443]
[1717060983882,2.67653,3736.2,3735.6,1.29789222]
[1717060984277,2.67653,3736.2,3735.7,0.0574524]
[1717060984523,2.67653,3736.2,3735.8,1.29789222]
[1717060985028,2.67653,3736.2,3735.9,0.05723315]
[1717060985317,2.67653,3736.2,3735.9,1.35512537]
[1717060985526,2.67653,3736.2,3735.9,1.29789222]
[1717060991351,2.67653,3736.2,3736.0,1.29789222]
[1717060991909,2.67653,3736.2,3736.1,0.05718568]
[1717060992258,2.67653,3736.2,3736.1,1.3550779]
[1717060996047,2.67618,3736.7,3736.1,1.49058569]
[1717060996289,2.67618,3736.7,3736.2,1.29789222]
[1717060998420,2.67646,3736.3,3735.7,2.3239]
[1717060998730,2.67646,3736.3,3735.8,1.29789222]
[1717060998936,2.67646,3736.3,3735.8,1.35480879]
[1717061000263,2.67646,3736.3,3735.8,1.29789222]
[1717061000418,2.67646,3736.3,3735.8,1.6657631]
[1717061001968,2.67646,3736.3,3735.8,1.29789222]
[1717061002320,2.67646,3736.3,3735.9,0.05690556]
[1717061002542,2.67646,3736.3,3735.9,1.35479778]
[1717061002722,2.67646,3736.3,3735.9,1.29789222]
[1717061004420,1.967,3736.7,3735.2,2.3942]
[1717061004421,2.67675,3735.9,3735.2,2.3942]
[1717061004651,2.67675,3735.9,3735.3,1.53731222]
[1717061004873,2.67675,3735.9,3735.3,1.59428385]
[1717061006672,2.67675,3735.9,3735.3,1.35486385]
[1717061007826,2.67708,3735.4,3735.3,0.05697163]
[1717061008366,2.67708,3735.4,3734.8,2.398]
[1717061008662,2.67708,3735.4,3734.9,1.29789222]
[1717061008863,2.67708,3735.4,3734.9,1.72452256]
[1717061015607,2.67708,3735.4,3734.9,0.05704112]
[1717061015755,2.67739,3735.0,3733.8,2.2618]
[1717061015962,2.67739,3735.0,3733.9,1.35554289]
[1717061016273,2.67739,3735.0,3734.0,2.3433]
[1717061016492,2.67739,3735.0,3734.1,1.29789222]
[1717061016674,2.67739,3735.0,3734.2,0.36988319]
[1717061016872,2.67739,3735.0,3734.3,1.29789222]
[1717061017102,2.67739,3735.0,3734.3,1.35557517]
[1717061022202,2.4245,3735.5,3734.3,1.35557517]
[1717061022203,2.67767,3734.6,3734.3,1.35557517]
[1717061022723,3.49636,3735.1,3734.3,1.35557517]
[1717061022924,3.49636,3735.1,3734.4,0.17254584]
[1717061023126,3.49636,3735.1,3734.5,1.29789222]
[1717061023284,3.49636,3735.1,3734.5,1.35563905]
[1717061031250,0.819,3735.0,3734.5,1.35563905]
[1717061034088,3.49636,3735.1,3734.5,1.35563905]
[1717061034307,0.819,3735.0,3734.5,1.54544586]
[1717061034626,2.67736,3735.1,3734.5,1.54544586]
[1717061034807,0.819,3735.0,3734.5,1.54544586]
[1717061035321,2.67736,3735.1,3734.5,1.54544586]
[1717061035532,0.819,3735.0,3734.5,1.54544586]
[1717061036647,2.67736,3735.1,3734.5,1.54544586]
[1717061036846,0.819,3735.0,3734.5,1.54544586]
[1717061041221,0.819,3735.0,3734.5,1.35563905]
[1717061042246,0.819,3734.8,3734.5,0.05774683]
[1717061042649,0.819,3734.8,3734.0,2.3433]
[1717061042832,0.819,3734.8,3734.1,1.29789222]
[1717061043169,0.819,3734.8,3734.1,1.3557054]
[1717061043467,3.49648,3734.9,3734.2,0.36990054]
[1717061043767,3.49648,3734.9,3734.3,1.29789222]
[1717061043999,3.49648,3734.9,3734.3,1.35568336]
[1717061048984,2.67748,3734.9,3734.3,1.35568336]
[1717061049158,3.49648,3734.9,3734.3,1.35568336]
[1717061049360,3.49648,3734.9,3734.3,1.76257175]
[1717061051985,2.67776,3734.5,3734.3,0.05779114]
[1717061052140,0.819,3734.4,3734.3,0.05779114]
[1717061052340,2.67797,3734.2,3733.6,2.295]
[1717061052558,2.67797,3734.2,3733.7,1.29789222]
[1717061052559,0.819,3733.9,3733.7,1.29789222]
[1717061052753,0.819,3733.9,3733.7,1.35384152]
[1717061054651,0.819,3733.9,3733.7,0.85384152]
[1717061054989,0.819,3733.9,3733.7,0.0559493]
[1717061056187,2.67823,3733.8,3733.7,0.0559493]
[1717061056504,2.67823,3733.8,3733.6,0.00201074]
[1717061056987,2.67823,3733.8,3733.7,0.0559493]
[1717061057197,3.49723,3733.8,3733.7,0.0559493]
[1717061057346,3.49723,3733.8,3733.6,0.00201074]
[1717061057347,2.67823,3733.8,3733.6,0.00201074]
[1717061057549,3.49723,3733.8,3733.6,0.00201074]
[1717061057772,2.67823,3733.8,3733.7,0.0559493]
[1717061057986,3.49723,3733.8,3733.7,0.0559493]
[1717061058197,3.49723,3733.8,3733.6,0.00201074]
[1717061058491,3.49723,3733.8,3733.7,0.0559493]
[1717061058697,3.846953,3733.8,3733.7,0.0559493]
[1717061058846,3.846953,3733.8,3733.6,0.00201074]
[1717061059275,3.846953,3733.8,3733.7,0.0559493]
[1717061059663,3.846953,3733.8,3733.6,0.00201074]
[1717061060070,0.3846953,3733.7,3733.6,0.00201074]
[1717061061148,2.7832953,3733.7,3733.6,0.00201074]
[1717061061503,6.1502953,3733.7,3733.6,7.4e-07]
[1717061061648,9.1502953,3733.7,3733.6,7.4e-07]
[1717061062962,6.3332953,3733.7,3733.6,7.4e-07]
[1717061064565,0.3846953,3733.7,3733.6,7.4e-07]
[1717061064910,0.819,3733.7,3733.6,7.4e-07]
[1717061065287,2.67823,3733.8,3733.6,7.4e-07]
[1717061065883,0.819,3733.7,3733.6,7.4e-07]
[1717061066296,2.67823,3733.8,3733.6,7.4e-07]
[1717061066297,4.64523,3733.8,3733.6,7.4e-07]
[1717061066496,0.464523,3733.7,3733.6,7.4e-07]
[1717061072037,2.67823,3733.8,3733.6,7.4e-07]
[1717061072241,2.6779,3734.3,3733.7,3.66599222]
[1717061072536,2.6779,3734.3,3733.8,0.05137228]
[1717061072724,2.6779,3734.3,3733.9,1.29789222]
[1717061073081,2.6779,3734.3,3734.0,0.05135024]
[1717061073990,2.6779,3734.3,3734.0,1.34924246]
[1717061074189,2.6779,3734.3,3734.0,1.72097671]
[1717061076935,2.67751,3734.9,3734.1,2.4335]
[1717061078607,2.67751,3734.9,3734.2,0.0513282]
[1717061084560,2.67777,3734.5,3734.2,0.0513282]
[1717061089243,2.67777,3734.5,3733.8,2.4764]
[1717061089244,2.67809,3734.0,3733.8,2.4764]
[1717061089429,2.67809,3734.0,3733.8,3.77429222]
[1717061090069,0.57938278,3733.9,3733.8,3.77429222]
[1717061090639,2.52609628,3733.9,3733.8,3.77429222]
[1717061091148,1.9467135,3733.9,3733.8,3.77429222]
[1717061094941,1.9467135,3733.9,3733.8,2.4764]
[1717061095756,2.67823,3733.8,3733.6,7.4e-07]
[1717061095957,1.9467135,3733.7,3733.6,7.4e-07]
[1717061096353,2.52612213,3733.7,3733.6,7.4e-07]
[1717061096555,2.52617357,3733.7,3733.6,7.4e-07]
[1717061097153,2.52626845,3733.7,3733.6,7.4e-07]
[1717061097357,3.2434183,3733.7,3733.6,7.4e-07]
[1717061100392,2.52626845,3733.7,3733.6,7.4e-07]
[1717061100570,1.9467135,3733.7,3733.6,7.4e-07]
[1717061100774,2.52620088,3733.7,3733.6,7.4e-07]
[1717061100970,1.9467135,3733.7,3733.6,7.4e-07]
[1717061102545,1.9467135,3733.7,3733.6,2.26010074]
[1717061103270,1.9467135,3733.7,3733.6,3.55799296]
[1717061108189,1.9467135,3733.7,3733.6,3.91379226]
[1717061108666,2.67823,3733.8,3733.6,3.91379226]
[1717061108986,2.67823,3733.8,3733.7,1.29789222]
[1717061109352,4.62486327,3733.8,3733.7,1.29789222]
[1717061112584,4.62486327,3733.8,3733.7,1.34894793]
[1717061115096,1.94663327,3733.8,3733.7,1.34894793]
[1717061116132,1.94663327,3733.8,3733.7,1.7098528]
[1717061116314,1.94663327,3734.2,3733.7,2.5288528]
[1717061116978,2.67792,3734.3,3733.7,2.5288528]
[1717061117384,1.94648207,3734.2,3733.7,2.5288528]
[1717061118415,1.94648207,3734.2,3733.7,1.7098528]
[1717061118628,1.94648207,3734.2,3733.7,1.34894793]
[1717061137952,1.94648207,3734.2,3733.9,1.29789222]
[1717061138244,7.38,3734.6,3734.2,2.3614]
[1717061138456,7.38,3734.6,3734.4,2.4395]
[1717061138457,1.94612568,3734.5,3734.4,2.4395]
[1717061138747,7.38,3735.1,3734.6,2.4395]
[1717061138905,7.38,3735.1,3734.7,2.11589222]
[1717061138906,1.94596452,3735.0,3734.7,2.11589222]
[1717061139247,1.94596452,3735.0,3734.8,0.05036644]
[1717061139537,1.94596452,3735.0,3734.9,1.29789222]
[1717061139937,1.94596452,3735.0,3734.9,1.34823175]
[1717061140102,4.93256097,3735.0,3734.9,0.05033953]
[1717061140510,5.51173382,3735.0,3734.6,2.4395]
[1717061140711,2.52513737,3734.9,3734.7,1.34627225]
[1717061140922,1.94596452,3734.8,3734.7,1.29789222]
[1717061141150,1.94596452,3734.9,3734.7,1.29789222]
[1717061141364,1.94596452,3734.8,3734.7,1.29789222]
[1717061141567,1.94596452,3734.9,3734.7,1.29789222]
[1717061143056,1.94596452,3734.8,3734.7,1.29789222]
[1717061143275,1.94596452,3734.9,3734.7,1.29789222]
[1717061143454,1.94596452,3734.8,3734.7,1.29789222]
[1717061143975,5.1224156,3734.8,3733.9,3.0]
[1717061144149,5.1224156,3734.8,3733.8,2.4893]
[1717061144150,2.67774,3734.5,3734.0,1.29789222]
[1717061144316,2.52521076,3734.4,3734.0,1.29789222]
[1717061144523,1.94596452,3734.3,3734.0,1.29789222]
[1717061145157,2.4662596,3734.3,3734.0,1.29789222]
[1717061145360,2.52521076,3734.2,3734.0,1.29789222]
[1717061145528,1.94596452,3734.1,3734.0,1.29789222]
[1717061146233,2.67802,3734.1,3733.4,2.2576]
[1717061146447,1.94659656,3734.0,3733.7,1.29789222]
[1717061147059,2.67802,3734.1,3733.7,1.29789222]
[1717061147555,1.94660692,3734.0,3733.7,1.29789222]
[1717061147747,2.26643843,3734.0,3733.7,1.29789222]
[1717061147914,1.94660692,3733.9,3733.7,1.29789222]
[1717061150977,1.94660692,3733.8,3733.7,1.29789222]
[1717061151183,2.67802,3734.1,3733.7,1.29789222]
[1717061151184,2.52601624,3734.0,3733.7,1.29789222]
[1717061151347,1.94660692,3733.9,3733.7,1.29789222]
[1717061152883,1.94660692,3733.8,3733.7,1.29789222]
[1717061153104,1.94660692,3734.0,3733.7,1.29789222]
[1717061153381,1.94660692,3733.9,3733.7,1.29789222]
[1717061153684,1.94660692,3733.8,3733.7,1.29789222]
[1717061153903,1.94660692,3734.0,3733.7,1.29789222]
[1717061154063,1.94660692,3734.0,3733.7,3.62439222]
[1717061154746,1.94660692,3734.0,3733.7,1.29789222]
[1717061155800,1.94660692,3734.0,3733.8,0.04899964]
[1717061156095,1.94660692,3734.0,3733.8,1.34689186]
[1717061160488,1.94660692,3734.0,3733.8,0.84689186]
[1717061160688,1.94660692,3734.0,3733.9,0.04732987]
[1717061162999,2.71940961,3734.0,3733.9,0.04732987]
[1717061163219,2.67817,3733.9,3733.4,2.3265]
[1717061163407,2.76560692,3733.8,3733.6,1.29789296]
[1717061163587,1.94660692,3733.7,3733.6,1.29789296]
[1717061164336,1.94660692,3733.7,3733.6,7.4e-07]
[1717061166107,1.94660692,3733.8,3733.6,7.4e-07]
[1717061166303,1.94660692,3733.7,3733.6,1.29789296]
[1717061166520,1.94660692,3733.7,3733.6,3.73359296]
[1717061167232,1.94660692,3733.8,3733.6,3.73359296]
[1717061167430,1.94660692,3733.8,3733.7,1.29789222]
[1717061168113,1.94660692,3733.8,3733.7,1.3452632]
[1717061168722,1.94660692,3733.8,3733.7,0.04737098]
[1717061169025,2.40908461,3733.8,3733.7,0.04737098]
[1717061169224,3.22808461,3733.8,3733.7,0.04737098]
[1717061169617,1.94660692,3733.8,3733.7,0.04737098]
[1717061172279,2.52601928,3733.8,3733.7,0.04737098]
[1717061173177,1.94660692,3733.8,3733.7,0.04737098]
[1717061173378,2.52601589,3733.8,3733.7,0.04737098]
[1717061174616,2.6783,3733.7,3733.6,7.4e-07]
[1717061174912,6.62563448,3733.7,3733.6,7.4e-07]
[1717061176932,6.62575247,3733.7,3733.6,7.4e-07]
[1717061177422,9.65265247,3733.7,3733.6,7.4e-07]
[1717061178799,12.65265247,3733.7,3733.6,7.4e-07]
[1717061178997,12.6526546,3733.7,3733.6,7.4e-07]
[1717061179987,11.8336546,3733.7,3733.6,7.4e-07]
[1717061180192,11.2836546,3733.7,3733.6,7.4e-07]
[1717061180426,12.1026546,3733.7,3733.6,7.4e-07]
[1717061180739,11.2836546,3733.7,3733.6,7.4e-07]
[1717061180925,12.1026546,3733.7,3733.6,7.4e-07]
[1717061181897,3.86014768,3733.7,3733.6,7.4e-07]
[1717061182106,4.67914768,3733.7,3733.6,7.4e-07]
[1717061182339,6.62626156,3733.7,3733.6,7.4e-07]
[1717061184163,6.04673247,3733.7,3733.6,7.4e-07]
[1717061184313,6.62622799,3733.7,3733.6,7.4e-07]
[1717061186921,8.98662799,3733.7,3733.6,7.4e-07]
[1717061187122,11.98662799,3733.7,3733.6,7.4e-07]
[1717061187323,12.53662799,3733.7,3733.6,7.4e-07]
[1717061189049,15.21492799,3733.7,3733.6,7.4e-07]
[1717061189363,18.03192799,3733.7,3733.6,7.4e-07]
[1717061191314,2.67953,3732.0,3731.8,2.3433]
[1717061191511,1.94711388,3731.9,3731.8,2.3433]
[1717061192109,2.67953,3732.0,3731.9,2.4243]
[1717061192265,2.67953,3732.0,3731.9,3.72219222]
[1717061192469,2.67953,3732.0,3731.9,3.77050578]
[1717061192666,2.67953,3732.0,3731.9,4.14755636]
[1717061192889,4.6270179,3732.0,3731.9,4.14755636]
[1717061193308,4.62717534,3732.0,3731.9,4.14755636]
[1717061193952,4.62717534,3732.0,3731.9,2.47261356]
[1717061194490,4.62717534,3732.0,3731.9,2.4243]
[1717061195752,4.62717534,3732.0,3731.9,3.72219222]
[1717061195957,2.67953,3732.0,3731.9,3.77049306]
[1717061196163,2.67953,3732.0,3731.9,2.47260084]
[1717061196367,3.49853,3732.0,3731.9,2.4243]
[1717061197503,3.49853,3732.0,3731.1,2.2501]
[1717061197657,0.819,3731.7,3731.2,2.09093022]
[1717061197996,0.819,3731.7,3731.2,2.13930831]
[1717061198568,2.67981,3731.6,3731.2,2.13930831]
[1717061198768,0.819,3731.5,3731.2,0.04837809]
[1717061198971,2.67981,3731.6,3731.1,2.2501]
[1717061199304,2.67981,3731.6,3731.3,0.04836705]
[1717061199471,2.67981,3731.6,3731.1,3.54799222]
[1717061199472,2.67981,3731.6,3731.2,0.04837809]
[1717061199801,2.67981,3731.6,3731.3,0.04836705]
[1717061200302,2.67981,3731.6,3731.4,0.04835601]
[1717061200486,0.819,3731.5,3731.4,0.04835601]
[1717061200682,0.819,3731.5,3731.1,2.2501]
[1717061200881,0.819,3731.2,3731.1,2.2501]
[1717061202373,0.819,3731.3,3731.1,2.2501]
[1717061203803,2.67981,3731.6,3731.1,2.2501]
[1717061204007,0.819,3731.4,3731.1,2.2501]
[1717061207987,0.819,3731.3,3731.1,3.54799222]
[1717061208925,2.67981,3731.6,3731.3,2.3808]
[1717061209108,2.67981,3731.6,3731.4,1.29789222]
[1717061209306,2.67981,3731.6,3730.5,3.79958]
[1717061209307,0.819,3731.5,3730.5,3.79958]
[1717061209530,0.819,3731.5,3730.7,2.3564]
[1717061209674,0.819,3731.5,3730.5,2.98058]
[1717061209675,0.819,3731.5,3730.9,2.3564]
[1717061209877,0.819,3731.5,3731.0,1.29789222]
[1717061211668,0.819,3731.3,3731.0,1.29789222]
[1717061215916,0.819,3731.3,3731.1,0.04736461]
[1717061216304,0.819,3731.3,3731.0,1.29789222]
[1717061216492,0.819,3731.3,3731.2,0.04735357]
[1717061216693,0.819,3731.3,3731.0,1.29789222]
[1717061216877,0.819,3731.3,3731.2,0.04735357]
[1717061217077,0.819,3731.3,3731.0,1.29789222]
[1717061217291,0.819,3731.3,3731.2,0.04735357]
[1717061217515,0.819,3731.3,3731.0,1.29789222]
[1717061217717,0.819,3731.3,3731.2,0.04735357]
[1717061217923,0.819,3731.3,3731.1,0.04736461]
[1717061218079,0.819,3731.3,3731.2,0.04735357]
[1717061218278,0.819,3731.3,3731.0,1.29789222]
[1717061218505,0.819,3731.3,3731.2,0.04735357]
[1717061218719,0.819,3731.3,3731.1,0.04736461]
[1717061218920,0.819,3731.3,3731.2,0.04735357]
[1717061219279,0.819,3731.3,3731.0,1.29789222]
[1717061219480,0.819,3731.3,3731.2,0.04735357]
[1717061219680,0.819,3731.3,3731.0,1.29789222]
[1717061219895,0.819,3731.3,3731.2,0.04735357]
[1717061220105,2.6801,3731.2,3731.0,1.29789222]
[1717061220494,2.6801,3731.2,3731.1,0.04736461]
[1717061220698,2.6801,3731.2,3731.0,1.29789222]
[1717061220892,0.819,3731.3,3730.5,2.457]
[1717061220893,2.68025,3731.0,3730.5,2.457]
[1717061221225,0.819,3730.6,3729.8,2.3273]
[1717061221527,0.819,3730.2,3729.9,1.29789222]
[1717061221723,2.6806,3730.6,3730.0,2.3264]
[1717061221922,2.6806,3730.6,3730.2,2.3264]
[1717061222111,2.6806,3730.6,3730.3,1.29789222]
[1717061223237,0.819,3730.5,3730.3,1.29789222]
[1717061224913,10.197,3731.8,3730.5,2.4991]
[1717061224914,7.38,3731.8,3730.5,2.4991]
[1717061225126,2.322,3732.1,3730.7,4.61599222]
[1717061225127,2.67985,3731.6,3730.7,4.61599222]
[1717061225304,2.67985,3731.6,3731.0,2.4991]
[1717061225488,7.38,3732.3,3730.6,0.37969922]
[1717061225489,2.67949,3732.1,3731.2,2.4991]
[1717061225840,0.819,3731.8,3731.3,1.29789222]
[1717061226190,0.819,3731.6,3731.3,1.29789222]
[1717061226498,0.819,3731.4,3730.6,3.37969922]
[1717061226699,0.819,3731.4,3730.7,3.71519222]
[1717061226930,0.819,3731.2,3730.7,3.71519222]
[1717061228043,2.68003,3731.3,3730.7,3.71519222]
[1717061228203,0.819,3731.1,3730.7,3.71519222]
[1717061228820,3.49903,3731.3,3730.7,3.71519222]
[1717061229447,0.57982006,3731.2,3730.7,3.71519222]
[1717061229633,0.57982006,3731.2,3730.7,1.29789222]
[1717061229634,1.39882006,3731.2,3730.7,1.29789222]
[1717061229949,0.819,3731.2,3730.7,1.29789222]
[1717061230240,1.39882497,3731.2,3730.7,1.29789222]
[1717061230749,0.57982497,3731.2,3730.7,1.29789222]
[1717061231056,0.57982497,3731.2,3730.8,0.04626949]
[1717061231345,0.57982497,3731.2,3730.4,3.2502]
[1717061231346,2.68003,3731.3,3730.9,1.29789222]
[1717061231546,3.029933,3731.3,3730.9,0.04627755]
[1717061231933,3.029933,3731.3,3730.9,1.29789222]
[1717061232244,0.57981975,3731.2,3731.0,0.04626651]
[1717061232545,0.819,3731.2,3731.0,0.04626651]
[1717061232746,2.68003,3731.3,3731.0,0.04626651]
[1717061233043,0.819,3731.1,3730.4,2.4312]
[1717061233256,0.819,3731.1,3730.5,1.29789222]
[1717061234007,0.819,3730.9,3730.5,1.29789222]
[1717061234245,0.819,3730.8,3730.5,1.29789222]
[1717061237413,0.819,3731.0,3730.5,1.29789222]
[1717061237613,0.819,3730.8,3730.1,2.4512]
[1717061237814,0.819,3730.8,3730.2,1.29789222]
[1717061238423,2.68032,3730.9,3730.2,1.29789222]
[1717061239811,2.3784,3731.6,3730.4,0.819]
[1717061239812,2.68,3731.4,3730.4,0.819]
[1717061240151,0.57984585,3731.3,3730.5,1.29789222]
[1717061240306,0.57984202,3731.3,3730.7,2.4864]
[1717061240509,0.57984202,3731.3,3730.8,1.29789222]
[1717061240923,2.68,3731.4,3730.8,1.29789222]
[1717061242955,2.67964,3731.9,3730.8,1.29789222]
[1717061243152,0.57978532,3731.6,3730.9,2.4303]
[1717061243344,0.57978532,3731.6,3731.0,1.29789222]
[1717061244340,0.57978532,3731.6,3731.1,2.2966]
[1717061244544,0.57978532,3731.8,3731.1,3.59449222]
[1717061245355,0.57978532,3731.8,3731.2,1.29789222]
[1717061245568,0.57978532,3731.8,3731.3,1.29789222]
[1717061245866,0.57978532,3732.3,3731.5,2.2831]
[1717061246071,0.57978532,3732.3,3731.6,1.29789222]
[1717061246267,0.57978532,3732.3,3731.6,1.34388908]
[1717061246971,2.67928,3732.4,3731.7,3.58099222]
[1717061247345,2.67928,3732.4,3731.8,0.04595254]
[1717061247548,2.67928,3732.4,3731.9,1.29789222]
[1717061247957,2.67928,3732.4,3732.0,0.04593047]
[1717061248178,2.67928,3732.4,3732.1,1.29789222]
[1717061248489,2.67928,3732.4,3732.2,0.04590841]
[1717061248651,2.67928,3732.4,3732.3,1.29789222]
[1717061248984,2.67928,3732.4,3732.3,1.3437896]
[1717061251461,2.947208,3732.4,3732.3,0.04589738]
[1717061251663,2.947208,3732.4,3731.7,2.2831]
[1717061251984,2.67928,3732.4,3732.3,0.04561448]
[1717061252489,2.67928,3732.4,3731.8,1.29789222]
[1717061252700,2.67928,3732.4,3732.3,0.04561448]
[1717061252868,2.67928,3732.4,3731.8,1.29789222]
[1717061253055,2.67928,3732.4,3732.3,0.04561448]
[1717061253397,2.67928,3732.4,3731.8,1.29789222]
[1717061253398,2.947208,3732.4,3731.8,1.29789222]
[1717061253595,2.67928,3732.4,3732.3,0.04561448]
[1717061253796,2.67928,3732.4,3731.8,1.29789222]
[1717061253953,2.67928,3732.4,3732.3,0.04561448]
[1717061254156,2.67928,3732.4,3731.8,1.29789222]
[1717061254355,2.67928,3732.4,3732.3,0.04561448]
[1717061254601,2.947208,3732.4,3731.8,1.29789222]
[1717061254900,2.67928,3732.4,3731.8,1.29789222]
[1717061255500,2.67928,3732.4,3731.9,0.0456014]
[1717061255906,2.67939,3732.2,3731.9,0.0456014]
[1717061256109,4.4393,3732.6,3731.9,0.0456014]
[1717061256110,2.67952,3732.0,3731.9,0.0456014]
[1717061256587,2.947472,3732.0,3731.9,0.0456014]
[1717061256990,3.52722642,3732.0,3731.3,2.4877]
[1717061257207,2.67952,3732.0,3731.9,0.0456014]
[1717061257527,2.67952,3732.0,3731.9,1.34349362]
[1717061257655,2.67919,3732.5,3731.9,3.82609362]
[1717061257857,2.67919,3732.5,3732.0,1.29789222]
[1717061258278,2.67919,3732.5,3732.0,1.34357475]
[1717061261370,2.67919,3732.5,3732.0,1.72619223]
[1717061264090,2.67919,3732.5,3732.0,1.34357475]
[1717061266603,2.67884,3733.0,3732.1,2.3228]
[1717061266943,2.67884,3733.0,3732.2,1.34347642]
[1717061268410,2.67903,3732.7,3732.2,1.34347642]
[1717061270469,0.57964003,3732.6,3732.2,1.34347642]
[1717061270765,2.67903,3732.7,3732.2,1.34347642]
[1717061270973,2.67903,3732.7,3732.2,1.29789222]
[1717061271345,0.57962021,3732.6,3732.2,1.29789222]
[1717061271651,0.57962021,3732.6,3732.3,0.04557317]
[1717061271856,0.57962021,3732.6,3732.1,2.3228]
[1717061271857,0.57962021,3732.6,3732.4,1.29789222]
[1717061272058,0.57962021,3732.6,3732.4,1.34345436]
[1717061279265,2.67916,3732.5,3732.4,1.34345436]
[1717061279474,3.25878021,3732.5,3732.4,1.34345436]
[1717061280871,3.81973823,3732.5,3732.4,0.04556214]
[1717061281274,3.81973823,3732.5,3732.4,1.29789222]
[1717061281275,5.20632689,3732.5,3732.4,1.29789222]
[1717061281583,5.20632689,3732.5,3732.4,1.34316203]
[1717061282379,8.38322689,3732.5,3732.4,0.04526981]
[1717061282588,8.38322689,3732.5,3731.2,2.3866]
[1717061282589,2.67964,3731.9,3731.2,2.3866]
[1717061282752,2.52727439,3731.8,3731.3,1.29789222]
[1717061283061,2.52727439,3731.8,3731.4,3.59159222]
[1717061283062,1.94754668,3731.7,3731.4,3.59159222]
[1717061283268,1.94754668,3731.7,3731.6,2.2937]
[1717061283465,2.67939,3732.2,3731.6,3.59159222]
[1717061283662,1.94754668,3732.1,3731.7,1.29789222]
[1717061284095,1.94754668,3732.1,3731.8,0.04521529]
[1717061284296,1.94754668,3732.1,3731.9,1.29789222]
[1717061284598,1.94754668,3732.1,3731.9,1.34304882]
[1717061284802,2.52722648,3732.1,3731.9,1.34304882]
[1717061285028,1.94754668,3732.0,3731.9,1.34304882]
[1717061286518,1.94754668,3732.0,3731.9,0.0451566]
[1717061286740,1.94754668,3732.0,3731.5,2.4746]
[1717061287034,1.94754668,3732.0,3731.9,0.04519472]
[1717061287236,1.94754668,3732.0,3731.6,1.29789222]
[1717061287728,1.94754668,3732.0,3731.7,0.04521679]
[1717061287931,1.94754668,3732.0,3731.7,1.34310901]
[1717061288439,1.94754668,3732.0,3731.9,3.1318]
[1717061288598,1.94754668,3732.0,3731.9,4.42969222]
[1717061288945,1.94754668,3732.0,3731.9,4.47494413]
[1717061289140,2.67917,3732.5,3731.9,4.47494413]
[1717061289429,3.49934,3732.3,3731.9,1.29789222]
[1717061289734,3.49945,3732.1,3731.0,2.3118]
[1717061289934,2.52709517,3732.0,3731.1,1.29789222]
[1717061290118,1.94746333,3731.9,3731.1,1.29789222]
[1717061290318,2.67976,3731.7,3731.1,1.29789222]
[1717061290522,1.94746333,3731.6,3731.1,1.29789222]
[1717061290722,1.94746333,3731.5,3731.2,0.04526244]
[1717061291024,1.94746333,3731.5,3731.2,1.29789222]
[1717061291399,1.94746333,3731.5,3731.3,0.04531177]
[1717061291843,1.94746333,3731.4,3731.2,1.29789222]
[1717061293153,3.2234,3731.9,3731.2,1.29789222]
[1717061293154,1.94746333,3731.3,3731.2,1.29789222]
[1717061294164,1.94746333,3731.4,3731.2,4.49679222]
[1717061294365,2.67953,3732.0,3731.3,1.29789222]
[1717061294568,1.94790775,3731.9,3731.3,1.29789222]
[1717061294862,2.41065153,3731.8,3730.3,3.1989]
[1717061295169,0.82,3731.4,3730.4,1.29789222]
[1717061295318,1.94790775,3731.3,3730.5,0.82]
[1717061295522,1.94790775,3731.2,3730.6,1.29789222]
[1717061295749,1.94790775,3731.1,3730.6,1.29789222]
[1717061295923,1.94790775,3731.0,3730.6,1.29789222]
[1717061296158,1.94790775,3730.9,3730.6,1.29789222]
[1717061296359,1.94790775,3730.8,3730.6,1.29789222]
[1717061296670,1.94790775,3730.7,3730.6,1.29789222]
[1717061296822,1.94790775,3731.2,3730.6,1.29789222]
[1717061297023,1.94790775,3731.1,3730.6,1.74757144]
[1717061297220,1.94790775,3731.0,3730.6,1.74757144]
[1717061297507,1.94790775,3730.9,3730.6,1.74757144]
[1717061297804,1.94790775,3730.8,3730.6,1.74757144]
[1717061298106,2.68007,3731.3,3730.6,1.74757144]
[1717061298107,1.94790775,3730.7,3730.6,1.74757144]
[1717061298307,2.68007,3731.3,3730.6,1.74757144]
[1717061298504,1.94814941,3731.2,3730.6,1.74757144]
[1717061301108,1.94814941,3731.2,3731.1,0.82]
[1717061301267,1.94814941,3731.7,3731.1,2.11789222]
[1717061301471,1.94814941,3731.6,3731.2,3.65359222]
[1717061301814,1.94814941,3731.5,3731.2,3.65359222]
[1717061301984,1.94814941,3731.4,3731.2,3.65359222]
[1717061302184,1.94814941,3731.3,3731.2,3.65359222]
[1717061302409,1.94814941,3731.7,3731.2,4.01895144]
[1717061302571,1.94814941,3731.6,3731.2,4.01895144]
[1717061302774,1.94814941,3731.5,3731.2,4.01895144]
[1717061303039,2.67969,3731.8,3731.3,1.29789222]
[1717061303317,1.947826,3731.7,3731.3,1.29789222]